fUSD/lending_fUSD_20251123
["ID","MTS","AMOUNT","RATE_DAILY","PERIOD"]
[394731832,1763919124946,-500.0,0.00039452,8]
[394731833,1763919124957,-500.0,0.00039452,8]
[394731834,1763919124966,-500.0,0.00039452,8]
[394731835,1763919124975,-500.0,0.00039452,8]
[394731836,1763919124985,-500.0,0.00039452,8]
[394731837,1763919124995,-500.0,0.00039452,8]
[394731838,1763919125010,-500.0,0.00039452,8]
[394731839,1763919125019,-500.0,0.00039452,8]
[394731840,1763919125029,-547.25,0.00039452,8]
[394731841,1763919125039,-500.0,0.00039452,8]
[394731842,1763919125049,-1013.17,0.00039452,8]
[394731843,1763919125058,-500.0,0.00039452,8]
[394731844,1763919125069,-500.0,0.00039452,8]
[394731845,1763919125080,-1181.14,0.00039452,8]
[394731846,1763919125090,-1117.53,0.00039452,8]
[394731847,1763919125101,-544.85,0.00039452,8]
[394731848,1763919125111,-513.66116433,0.00039452,8]
[394731849,1763919125120,-507.47,0.00039452,8]
[394731850,1763919125131,-500.0,0.00039452,8]
[394731851,1763919125141,-500.0,0.00039452,8]
[394731852,1763919125151,-500.0,0.00039452,8]
[394731853,1763919125160,-500.0,0.00039452,8]
[394731854,1763919125170,-500.0,0.00039452,8]
[394731855,1763919125179,-500.0,0.00039452,8]
[394731856,1763919125189,-858.31,0.00039452,8]
[394731857,1763919125198,-500.0,0.00039452,8]
[394731858,1763919125207,-500.0,0.00039452,8]
[394731859,1763919125217,-500.0,0.00039452,8]
[394731860,1763919125227,-500.0,0.00039452,8]
[394731861,1763919125237,-500.0,0.00039452,8]
[394731862,1763919125248,-500.0,0.00039452,8]
[394731863,1763919125257,-500.0,0.00039452,8]
[394731864,1763919125267,-930.02,0.00039452,8]
[394731865,1763919125276,-500.0,0.00039452,8]
[394731866,1763919125286,-500.0,0.00039452,8]
[394731867,1763919125295,-500.0,0.00039452,8]
[394731868,1763919125305,-500.0,0.00039452,8]
[394731869,1763919125315,-500.0,0.00039452,8]
[394731870,1763919125325,-500.0,0.00039452,8]
[394731871,1763919125334,-500.0,0.00039452,8]
[394731872,1763919125346,-500.0,0.00039452,8]
[394731873,1763919125356,-500.0,0.00039452,8]
[394731874,1763919125365,-500.0,0.00039452,8]
[394731875,1763919125376,-500.0,0.00039452,8]
[394731876,1763919125385,-500.0,0.00039452,8]
[394731877,1763919125395,-500.0,0.00039452,8]
[394731878,1763919125405,-663.61,0.00039452,8]
[394731879,1763919125415,-500.0,0.00039452,8]
[394731880,1763919125425,-500.0,0.00039452,8]
[394731881,1763919125435,-500.0,0.00039452,8]
[394731882,1763919125445,-500.0,0.00039452,8]
[394731883,1763919125457,-521.83,0.00039452,8]
[394731884,1763919125467,-500.0,0.00039452,8]
[394731885,1763919125478,-500.0,0.00039452,8]
[394731886,1763919125487,-572.45,0.00039452,8]
[394731887,1763919125497,-672.27,0.00039452,8]
[394731888,1763919125507,-500.0,0.00039452,8]
[394731889,1763919125517,-500.0,0.00039452,8]
[394731890,1763919125527,-500.0,0.00039452,8]
[394731891,1763919125536,-655.28,0.00039452,8]
[394731892,1763919125546,-500.0,0.00039452,8]
[394731893,1763919125556,-500.0,0.00039452,8]
[394731894,1763919125565,-500.0,0.00039452,8]
[394731895,1763919125577,-500.0,0.00039452,8]
[394731896,1763919125588,-500.0,0.00039452,8]
[394731897,1763919125599,-500.0,0.00039452,8]
[394731898,1763919125609,-500.0,0.00039452,8]
[394731899,1763919125619,-500.0,0.00039452,8]
[394731900,1763919125629,-500.0,0.00039452,8]
[394731901,1763919125638,-500.0,0.00039452,8]
[394731902,1763919125649,-1290.84,0.00039452,8]
[394731903,1763919125658,-500.0,0.00039452,8]
[394731904,1763919125669,-500.0,0.00039452,8]
[394731905,1763919125681,-500.0,0.00039452,8]
[394731906,1763919125691,-500.0,0.00039452,8]
[394731907,1763919125701,-500.0,0.00039452,8]
[394731908,1763919125711,-500.0,0.00039452,8]
[394731909,1763919125720,-1436.72,0.00039452,8]
[394731910,1763919125730,-502.4541412,0.00039452,8]
[394731911,1763919125740,-500.0,0.00039452,8]
[394731912,1763919125750,-500.0,0.00039452,8]
[394731913,1763919125760,-834.8,0.00039452,8]
[394731914,1763919125771,-500.0,0.00039452,8]
[394731915,1763919125781,-606.88,0.00039452,8]
[394731916,1763919125791,-851.95,0.00039452,8]
[394731917,1763919125802,-513.1,0.00039452,8]
[394731918,1763919125811,-522.41,0.00039452,8]
[394731919,1763919125821,-500.0,0.00039452,8]
[394731920,1763919125832,-500.0,0.00039452,8]
[394731921,1763919125843,-502.39569449,0.00039452,8]
[394731922,1763919125853,-500.0,0.00039452,8]
[394731923,1763919125862,-500.0,0.00039452,8]
[394731924,1763919125872,-500.0,0.00039452,8]
[394731925,1763919125882,-500.0,0.00039452,8]
[394731926,1763919125891,-696.16,0.00039452,8]
[394731927,1763919125901,-190.06106534,0.00039452,8]
[394731928,1763919125911,-500.0,0.00039452,8]
[394731929,1763919125920,-500.0,0.00039452,8]
[394731930,1763919125931,-687.88,0.00039452,8]
[394731931,1763919125941,-421.99206521,0.00039452,8]
[394731932,1763919125953,-500.0,0.00039452,8]
[394731933,1763919125963,-500.0,0.00039452,8]
[394731934,1763919125972,-259.37828507,0.00039452,8]
[394731935,1763919125983,-500.0,0.00039452,8]
[394731936,1763919125994,-500.0,0.00039452,8]
[394731937,1763919126007,-500.0,0.00039452,8]
[394731938,1763919126018,-500.0,0.00039452,8]
[394731939,1763919126028,-500.0,0.00039452,8]
[394731940,1763919126038,-747.51,0.00039452,8]
[394731941,1763919126049,-500.0,0.00039452,8]
[394731942,1763919126059,-500.0,0.00039452,8]
[394731943,1763919126070,-500.0,0.00039452,8]
[394731944,1763919126081,-500.0,0.00039452,8]
[394731945,1763919126094,-500.0,0.00039452,8]
[394731946,1763919126104,-500.0,0.00039452,8]
[394731947,1763919126115,-500.0,0.00039452,8]
[394731948,1763919126125,-500.0,0.00039452,8]
[394731949,1763919126135,-500.0,0.00039452,8]
[394731950,1763919126145,-500.0,0.00039452,2]
[394731951,1763919126155,-675.75,0.00039452,8]
[394731952,1763919126166,-500.0,0.00039452,8]
[394731953,1763919126177,-500.0,0.00039452,8]
[394731954,1763919126188,-500.0,0.00039452,8]
[394731955,1763919126198,-781.33,0.00039452,8]
[394731956,1763919126208,-500.0,0.00039452,8]
[394731957,1763919126219,-500.0,0.00039452,8]
[394731958,1763919126229,-618.95,0.00039452,8]
[394731959,1763919126239,-159.9213214,0.00039452,8]
[394731960,1763919126249,-500.0,0.00039452,8]
[394731961,1763919126259,-500.0,0.00039452,8]
[394731962,1763919126269,-500.0,0.00039452,8]
[394731963,1763919126279,-676.69,0.00039452,8]
[394731964,1763919126289,-500.0,0.00039452,8]
[394731965,1763919126300,-532.09,0.00039452,8]
[394731966,1763919126311,-500.0,0.00039452,8]
[394731967,1763919126320,-724.17,0.00039452,8]
[394731968,1763919126330,-566.69,0.00039452,8]
[394731969,1763919126340,-611.46,0.00039452,8]
[394731970,1763919126353,-500.0,0.00039452,8]
[394731971,1763919126363,-500.0,0.00039452,8]
[394731972,1763919126373,-500.0,0.00039452,8]
[394731973,1763919126382,-500.0,0.00039452,8]
[394731974,1763919126392,-556.52,0.00039452,8]
[394731975,1763919126403,-500.0,0.00039452,8]
[394731976,1763919126413,-500.0,0.00039452,8]
[394731977,1763919126424,-500.0,0.00039452,8]
[394731978,1763919126435,-751.1,0.00039452,8]
[394731979,1763919126446,-744.47,0.00039452,8]
[394731980,1763919126456,-823.76,0.00039452,8]
[394731981,1763919126466,-500.0,0.00039452,8]
[394731982,1763919126476,-593.63,0.00039452,8]
[394731983,1763919126486,-500.0,0.00039452,8]
[394731984,1763919126497,-500.0,0.00039452,8]
[394731985,1763919126507,-500.0,0.00039452,8]
[394731986,1763919126517,-1092.92,0.00039452,8]
[394731987,1763919126527,-500.0,0.00039452,8]
[394731988,1763919126537,-500.0,0.00039452,8]
[394731989,1763919126547,-500.0,0.00039452,8]
[394731990,1763919126557,-983.92,0.00039452,8]
[394731991,1763919126567,-500.0,0.00039452,8]
[394731992,1763919126577,-500.0,0.00039452,8]
[394731993,1763919126587,-500.0,0.00039452,8]
[394731994,1763919126599,-739.34,0.00039452,8]
[394731995,1763919126609,-500.0,0.00039452,8]
[394731996,1763919126619,-500.0,0.00039452,8]
[394731997,1763919126629,-1078.2,0.00039452,8]
[394731998,1763919126639,-500.0,0.00039452,2]
[394731999,1763919126649,-500.0,0.00039452,8]
[394732000,1763919126660,-792.73,0.00039452,8]
[394732001,1763919126669,-534.68,0.00039452,8]
[394732002,1763919126680,-500.0,0.00039452,8]
[394732003,1763919126691,-162.14539185,0.00039452,8]
[394732004,1763919126701,-500.0,0.00039452,8]
[394732005,1763919126712,-500.0,0.00039452,8]
[394732006,1763919126724,-1688.14,0.00039452,8]
[394732007,1763919126734,-500.0,0.00039452,8]
[394732008,1763919126744,-500.0,0.00039452,8]
[394732009,1763919126754,-500.0,0.00039452,8]
[394732010,1763919126764,-500.0,0.00039452,8]
[394732011,1763919126774,-500.0,0.00039452,8]
[394732012,1763919126784,-500.0,0.00039452,8]
[394732013,1763919126794,-500.0,0.00039452,8]
[394732014,1763919126805,-500.0,0.00039452,8]
[394732015,1763919126815,-500.0,0.00039452,8]
[394732016,1763919126825,-500.0,0.00039452,8]
[394732017,1763919126835,-500.0,0.00039452,8]
[394732018,1763919126847,-378.44629074,0.00039452,8]
[394732019,1763919126858,-825.7,0.00039452,8]
[394732020,1763919126867,-500.0,0.00039452,8]
[394732021,1763919126876,-500.0,0.00039452,8]
[394732022,1763919126887,-1034.36,0.00039452,8]
[394732023,1763919126897,-500.0,0.00039452,8]
[394732024,1763919126907,-500.0,0.00039452,8]
[394732025,1763919126917,-500.0,0.00039452,8]
[394732026,1763919126928,-500.0,0.00039452,8]
[394732027,1763919126939,-500.0,0.00039452,8]
[394732028,1763919126949,-500.0,0.00039452,8]
[394732029,1763919126959,-536.96937239,0.00039452,8]
[394732030,1763919126969,-500.0,0.00039452,8]
[394732031,1763919126979,-500.0,0.00039452,8]
[394732032,1763919126989,-500.0,0.00039452,8]
[394732033,1763919127001,-674.57,0.00039452,8]
[394732034,1763919127012,-500.0,0.00039452,8]
[394732035,1763919127024,-500.0,0.00039452,8]
[394732036,1763919127035,-500.0,0.00039452,8]
[394732037,1763919127045,-807.01,0.00039452,8]
[394732038,1763919127055,-500.0,0.00039452,8]
[394732039,1763919127065,-885.51,0.00039452,8]
[394732040,1763919127075,-500.0,0.00039452,8]
[394732041,1763919127086,-500.0,0.00039452,8]
[394732042,1763919127097,-848.13,0.00039452,8]
[394732043,1763919127108,-500.0,0.00039452,8]
[394732044,1763919127118,-500.0,0.00039452,8]
[394732045,1763919127128,-890.86,0.00039452,8]
[394732046,1763919127138,-500.0,0.00039452,8]
[394732047,1763919127148,-539.48030951,0.00039452,8]
[394732048,1763919127158,-1082.87,0.00039452,8]
[394732049,1763919127167,-500.0,0.00039452,8]
[394732050,1763919127177,-500.0,0.00039452,8]
[394732051,1763919127187,-500.0,0.00039452,8]
[394732052,1763919127197,-500.0,0.00039452,8]
[394732053,1763919127207,-500.0,0.00039452,8]
[394732054,1763919127216,-969.89,0.00039452,8]
[394732055,1763919127226,-500.0,0.00039452,8]
[394732056,1763919127236,-500.0,0.00039452,8]
[394732057,1763919127247,-500.0,0.00039452,8]
[394732058,1763919127256,-523.52,0.00039452,8]
[394732059,1763919127266,-500.0,0.00039452,8]
[394732060,1763919127275,-500.0,0.00039452,8]
[394732061,1763919127285,-500.0,0.00039452,8]
[394732062,1763919127295,-500.0,0.00039452,8]
[394732063,1763919127309,-500.0,0.00039452,8]
[394732064,1763919127320,-1353.11,0.00039452,8]
[394732065,1763919127331,-500.0,0.00039452,8]
[394732066,1763919127341,-500.0,0.00039452,8]
[394732067,1763919127352,-500.0,0.00039452,8]
[394732068,1763919127362,-500.0,0.00039452,8]
[394732069,1763919127371,-438.96152651,0.00039452,8]
[394732070,1763919127381,-500.0,0.00039452,8]
[394732071,1763919127391,-500.0,0.00039452,8]
[394732072,1763919127401,-500.0,0.00039452,8]
[394732073,1763919127411,-500.0,0.00039452,8]
[394732074,1763919127421,-500.0,0.00039452,8]
[394732075,1763919127431,-500.0,0.00039452,8]
[394732076,1763919127441,-500.0,0.00039452,8]
[394732077,1763919127451,-500.0,0.00039452,8]
[394732078,1763919127733,-500.0,0.00039452,8]
[394732079,1763919127744,-500.0,0.00039452,8]
[394732080,1763919127753,-500.0,0.00039452,8]
[394732081,1763919127762,-500.0,0.00039452,8]
[394732082,1763919127773,-500.0,0.00039452,8]
[394732083,1763919127783,-664.8,0.00039452,8]
[394732084,1763919127793,-500.0,0.00039452,8]
[394732085,1763919127804,-500.0,0.00039452,8]
[394732086,1763919127813,-1105.1,0.00039452,8]
[394732087,1763919127823,-694.85,0.00039452,8]
[394732088,1763919127833,-500.0,0.00039452,8]
[394732089,1763919127843,-923.44,0.00039452,8]
[394732090,1763919127854,-1728.86,0.00039452,8]
[394732091,1763919127864,-844.33,0.00039452,8]
[394732092,1763919127875,-500.0,0.00039452,8]
[394732093,1763919127885,-901.86,0.00039452,8]
[394732094,1763919127895,-588.28123281,0.00039452,8]
[394732095,1763919127906,-569.49,0.00039452,8]
[394732096,1763919127916,-500.0,0.00039452,8]
[394732097,1763919127927,-183.9157614,0.00039452,120]
[394732098,1763919127936,-500.0,0.00039452,8]
[394732099,1763919127946,-500.0,0.00039452,8]
[394732100,1763919127956,-500.0,0.00039452,8]
[394732101,1763919127965,-500.0,0.00039452,8]
[394732102,1763919127976,-686.06,0.00039452,8]
[394732103,1763919127985,-500.0,0.00039452,8]
[394732104,1763919127995,-643.3,0.00039452,8]
[394732105,1763919128007,-500.0,0.00039452,8]
[394732106,1763919128017,-500.0,0.00039452,8]
[394732107,1763919128026,-500.0,0.00039452,8]
[394732108,1763919128036,-500.0,0.00039452,8]
[394732109,1763919128046,-500.0,0.00039452,8]
[394732110,1763919128057,-602.39818404,0.00039452,8]
[394732111,1763919128067,-500.0,0.00039452,8]
[394732112,1763919128078,-500.0,0.00039452,8]
[394732113,1763919128088,-500.0,0.00039452,8]
[394732114,1763919128100,-500.0,0.00039452,8]
[394732115,1763919128110,-500.0,0.00039452,8]
[394732116,1763919128120,-883.07,0.00039452,8]
[394732117,1763919128130,-500.0,0.00039452,8]
[394732118,1763919128141,-500.0,0.00039452,8]
[394732119,1763919128151,-500.0,0.00039452,8]
[394732120,1763919128162,-500.0,0.00039452,8]
[394732121,1763919128172,-879.28,0.00039452,8]
[394732122,1763919128182,-853.13,0.00039452,8]
[394732123,1763919128192,-500.0,0.00039452,8]
[394732124,1763919128202,-500.0,0.00039452,8]
[394732125,1763919128212,-500.0,0.00039452,8]
[394732126,1763919128222,-500.0,0.00039452,8]
[394732127,1763919128233,-500.0,0.00039452,8]
[394732128,1763919128243,-854.09,0.00039452,8]
[394732129,1763919128254,-500.0,0.00039452,8]
[394732130,1763919128265,-980.42,0.00039452,8]
[394732131,1763919128275,-983.6,0.00039452,8]
[394732132,1763919128285,-500.0,0.00039452,8]
[394732133,1763919128295,-500.0,0.00039452,8]
[394732134,1763919128305,-500.0,0.00039452,8]
[394732135,1763919128316,-500.0,0.00039452,8]
[394732136,1763919128326,-500.0,0.00039452,8]
[394732137,1763919128336,-500.0,0.00039452,8]
[394732138,1763919128348,-500.0,0.00039452,8]
[394732139,1763919128358,-500.0,0.00039452,8]
[394732140,1763919128367,-500.0,0.00039452,8]
[394732141,1763919128377,-495.37214687,0.00039452,8]
[394732142,1763919128388,-500.0,0.00039452,8]
[394732143,1763919128398,-532.02585674,0.00039452,8]
[394732144,1763919128408,-846.1,0.00039452,8]
[394732145,1763919128418,-738.8,0.00039452,8]
[394732146,1763919128428,-500.0,0.00039452,8]
[394732147,1763919128438,-591.3,0.00039452,8]
[394732148,1763919128447,-500.0,0.00039452,8]
[394732149,1763919128458,-500.0,0.00039452,8]
[394732150,1763919128467,-500.0,0.00039452,8]
[394732151,1763919128478,-701.02,0.00039452,8]
[394732152,1763919128488,-623.41,0.00039452,8]
[394732153,1763919128499,-500.0,0.00039452,8]
[394732154,1763919128511,-500.0,0.00039452,8]
[394732155,1763919128522,-793.15,0.00039452,8]
[394732156,1763919128531,-959.16,0.00039452,8]
[394732157,1763919128541,-500.0,0.00039452,8]
[394732158,1763919128552,-500.0,0.00039452,8]
[394732159,1763919128562,-994.79,0.00039452,8]
[394732160,1763919128574,-1378.13,0.00039452,8]
[394732161,1763919128586,-501.5414676,0.00039452,8]
[394732162,1763919128599,-500.0,0.00039452,8]
[394732163,1763919128612,-500.0,0.00039452,8]
[394732164,1763919128624,-500.0,0.00039452,8]
[394732165,1763919128635,-745.87,0.00039452,8]
[394732166,1763919128645,-500.0,0.00039452,8]
[394732167,1763919128656,-500.0,0.00039452,8]
[394732168,1763919128666,-500.0,0.00039452,8]
[394732169,1763919128677,-500.0,0.00039452,8]
[394732170,1763919128687,-500.0,0.00039452,8]
[394732171,1763919128697,-500.0,0.00039452,8]
[394732172,1763919128707,-500.0,0.00039452,8]
[394732173,1763919128718,-500.0,0.00039452,8]
[394732174,1763919128728,-500.0,0.00039452,8]
[394732175,1763919128740,-500.0,0.00039452,8]
[394732176,1763919128750,-500.0,0.00039452,8]
[394732177,1763919128760,-500.0,0.00039452,8]
[394732178,1763919128771,-500.0,0.00039452,8]
[394732179,1763919128781,-500.0,0.00039452,8]
[394732180,1763919128791,-651.68,0.00039452,8]
[394732181,1763919128801,-733.25,0.00039452,8]
[394732182,1763919128811,-500.0,0.00039452,8]
[394732183,1763919128821,-500.0,0.00039452,120]
[394732184,1763919128831,-500.0,0.00039452,8]
[394732185,1763919128841,-500.0,0.00039452,8]
[394732186,1763919128852,-500.0,0.00039452,8]
[394732187,1763919128862,-500.0,0.00039452,8]
[394732188,1763919128872,-1330.04,0.00039452,8]
[394732189,1763919128882,-782.65,0.00039452,8]
[394732190,1763919128892,-915.71,0.00039452,8]
[394732191,1763919128902,-500.0,0.00039452,8]
[394732192,1763919128912,-621.91,0.00039452,8]
[394732193,1763919128922,-500.0,0.00039452,8]
[394732194,1763919128932,-500.0,0.00039452,8]
[394732195,1763919128942,-500.0,0.00039452,8]
[394732196,1763919128952,-500.0,0.00039452,8]
[394732197,1763919128961,-578.74,0.00039452,8]
[394732198,1763919128972,-1163.65,0.00039452,8]
[394732199,1763919128981,-500.0,0.00039452,8]
[394732200,1763919128991,-500.0,0.00039452,8]
[394732201,1763919129002,-500.0,0.00039452,8]
[394732202,1763919129017,-549.00096797,0.00039452,8]
[394732203,1763919129027,-977.42,0.00039452,2]
[394732204,1763919129037,-500.0,0.00039452,8]
[394732205,1763919129047,-625.31408626,0.00039452,8]
[394732206,1763919129058,-500.0,0.00039452,8]
[394732207,1763919129068,-1819.98,0.00039452,8]
[394732208,1763919129079,-700.0,0.00039452,120]
[394732209,1763919129091,-1467.74,0.00039452,8]
[394732210,1763919129101,-1026.43,0.00039452,8]
[394732211,1763919129111,-500.0,0.00039452,8]
[394732212,1763919129121,-500.0,0.00039452,8]
[394732213,1763919129130,-500.0,0.00039452,8]
[394732214,1763919129140,-500.0,0.00039452,8]
[394732215,1763919129150,-718.29,0.00039452,8]
[394732216,1763919129160,-500.0,0.00039452,8]
[394732217,1763919129170,-500.0,0.00039452,8]
[394732218,1763919129180,-500.0,0.00039452,8]
[394732219,1763919129189,-714.77,0.00039452,8]
[394732220,1763919129201,-500.0,0.00039452,8]
[394732221,1763919129217,-500.0,0.00039452,8]
[394732222,1763919129226,-761.4,0.00039452,8]
[394732223,1763919129236,-764.51,0.00039452,8]
[394732224,1763919129246,-1215.72,0.00039452,8]
[394732225,1763919129257,-500.0,0.00039452,8]
[394732226,1763919129267,-500.0,0.00039452,8]
[394732227,1763919129277,-500.0,0.00039452,8]
[394732228,1763919129287,-500.0,0.00039452,8]
[394732229,1763919129296,-500.0,0.00039452,8]
[394732230,1763919129306,-500.0,0.00039452,8]
[394732231,1763919129315,-711.91,0.00039452,8]
[394732232,1763919129325,-500.0,0.00039452,8]
[394732233,1763919129335,-500.0,0.00039452,8]
[394732234,1763919129347,-500.0,0.00039452,8]
[394732235,1763919129356,-500.0,0.00039452,8]
[394732236,1763919129366,-500.0,0.00039452,8]
[394732237,1763919129376,-704.27,0.00039452,8]
[394732238,1763919129386,-500.0,0.00039452,8]
[394732239,1763919129395,-610.38,0.00039452,8]
[394732240,1763919129405,-296.42582799,0.00039452,8]
[394732241,1763919129415,-500.0,0.00039452,8]
[394732242,1763919129425,-500.0,0.00039452,8]
[394732243,1763919129435,-653.5,0.00039452,8]
[394732244,1763919129446,-777.88,0.00039452,8]
[394732245,1763919129456,-500.0,0.00039452,8]
[394732246,1763919129465,-500.0,0.00039452,8]
[394732247,1763919129475,-1192.76,0.00039452,8]
[394732248,1763919129485,-500.0,0.00039452,8]
[394732249,1763919129494,-540.0,0.00039452,8]
[394732250,1763919129503,-504.21,0.00039452,8]
[394732251,1763919129512,-500.0,0.00039452,8]
[394732252,1763919129522,-803.43,0.00039452,8]
[394732253,1763919129531,-500.0,0.00039452,8]
[394732254,1763919129540,-688.32,0.00039452,8]
[394732255,1763919129549,-500.0,0.00039452,8]
[394732256,1763919129558,-500.0,0.00039452,8]
[394732257,1763919129567,-951.32,0.00039452,8]
[394732258,1763919129576,-914.16,0.00039452,8]
[394732259,1763919129585,-500.47,0.00039452,8]
[394732260,1763919129593,-500.0,0.00039452,8]
[394732261,1763919129604,-673.42,0.00039452,8]
[394732262,1763919129614,-582.89,0.00039452,8]
[394732263,1763919129624,-500.0,0.00039452,8]
[394732264,1763919129634,-500.0,0.00039452,8]
[394732265,1763919129643,-531.52,0.00039452,8]
[394732266,1763919129652,-530.48,0.00039452,8]
[394732267,1763919129661,-774.83,0.00039452,8]
[394732268,1763919129671,-500.0,0.00039452,8]
[394732269,1763919129680,-500.0,0.00039452,8]
[394732270,1763919129689,-500.0,0.00039452,8]
[394732271,1763919129698,-500.0,0.00039452,8]
[394732272,1763919129709,-500.0,0.00039452,8]
[394732273,1763919129718,-573.88661759,0.00039452,8]
[394732274,1763919129727,-500.0,0.00039452,8]
[394732275,1763919129736,-500.0,0.00039452,8]
[394732276,1763919129744,-500.0,0.00039452,8]
[394732277,1763919129754,-500.0,0.00039452,8]
[394732278,1763919129763,-645.44,0.00039452,8]
[394732279,1763919129772,-770.58,0.00039452,8]
[394732280,1763919129781,-500.0,0.00039452,8]
[394732281,1763919129791,-526.05670604,0.00039452,8]
[394732282,1763919129801,-824.01,0.00039452,8]
[394732283,1763919129813,-745.01,0.00039452,8]
[394732284,1763919129822,-500.0,0.00039452,8]
[394732285,1763919129833,-1103.15,0.00039452,8]
[394732286,1763919129843,-500.0,0.00039452,8]
[394732287,1763919129854,-500.0,0.00039452,8]
[394732288,1763919129864,-500.0,0.00039452,8]
[394732289,1763919129875,-358.65711769,0.00039452,8]
[394732290,1763919129884,-888.77,0.00039452,8]
[394732291,1763919129894,-500.0,0.00039452,8]
[394732292,1763919129904,-500.0,0.00039452,8]
[394732293,1763919129914,-781.87,0.00039452,8]
[394732294,1763919129924,-500.0,0.00039452,8]
[394732295,1763919129933,-552.9,0.00039452,8]
[394732296,1763919129943,-200.35202522,0.00039452,8]
[394732297,1763919129952,-500.0,0.00039452,8]
[394732298,1763919129961,-500.0,0.00039452,8]
[394732299,1763919129970,-500.0,0.00039452,8]
[394732300,1763919129980,-500.0,0.00039452,8]
[394732301,1763919129989,-500.0,0.00039452,8]
[394732302,1763919129998,-500.0,0.00039452,8]
[394732303,1763919130012,-700.87,0.00039452,8]
[394732304,1763919130021,-932.34,0.00039452,8]
[394732305,1763919130030,-599.84077984,0.00039452,8]
[394732306,1763919130039,-500.0,0.00039452,8]
[394732307,1763919130049,-500.0,0.00039452,8]
[394732308,1763919130059,-500.0,0.00039452,8]
[394732309,1763919130070,-500.0,0.00039452,8]
[394732310,1763919130079,-571.32,0.00039452,8]
[394732311,1763919130090,-823.48,0.00039452,8]
[394732312,1763919130101,-500.0,0.00039452,8]
[394732313,1763919130111,-500.0,0.00039452,8]
[394732314,1763919130120,-500.0,0.00039452,8]
[394732315,1763919130129,-500.0,0.00039452,8]
[394732316,1763919130229,-845.14,0.00039452,8]
[394732317,1763919130239,-569.32,0.00039452,8]
[394732318,1763919130248,-536.71,0.00039452,8]
[394732319,1763919130258,-519.81158554,0.00039452,8]
[394732320,1763919130267,-500.0,0.00039452,8]
[394732321,1763919130276,-500.0,0.00039452,8]
[394732322,1763919130285,-599.19,0.00039452,8]
[394732323,1763919130294,-500.0,0.00039452,8]
[394732324,1763919130303,-794.34,0.00039452,8]
[394732325,1763919130312,-500.0,0.00039452,8]
[394732326,1763919130321,-500.0,0.00039452,8]
[394732327,1763919130330,-500.0,0.00039452,8]
[394732328,1763919130339,-500.0,0.00039452,8]
[394732329,1763919130348,-500.0,0.00039452,8]
[394732330,1763919130357,-748.39,0.00039452,8]
[394732331,1763919130366,-500.0,0.00039452,8]